bitfinex/quotes_SOLUSD_20250624
["timestamp","ask_amount","ask_price","bid_price","bid_amount"]
[1750746472218,5.53768975,145.98,145.95,89.4]
[1750746472819,1.5376,145.99,145.95,89.4]
[1750746473033,7.07528975,145.99,145.95,89.4]
[1750746476146,7.07528975,145.99,145.95,94.93768975]
[1750746477854,1.5376,145.99,145.95,94.93768975]
[1750746478053,7.07528975,145.99,145.95,94.93768975]
[1750746478238,7.07528975,145.99,145.95,89.4]
[1750746478436,5.53768975,145.98,145.95,89.4]
[1750746481649,1.5376,145.99,145.95,89.4]
[1750746481852,12.3934,146.02,145.95,89.4]
[1750746481853,1.5058,146.03,145.95,89.4]
[1750746482161,1.5058,146.03,145.94,89.4]
[1750746482162,6.39425363,146.02,145.94,89.4]
[1750746482339,5.53768975,145.95,145.94,89.4]
[1750746482542,5.53768975,145.95,145.9,149.0]
[1750746482543,5.53768975,145.95,145.9,238.4]
[1750746482771,5.53768975,145.94,145.9,89.4]
[1750746482974,1.6556,145.97,145.9,89.4]
[1750746482975,5.53768975,145.91,145.9,89.4]
[1750746483175,5.53768975,145.91,145.88,89.4]
[1750746483353,5.53768975,145.91,145.87,5.53768975]
[1750746483673,5.53768975,145.9,145.86,33.63768975]
[1750746483972,5.53768975,145.9,145.86,5.53768975]
[1750746484356,5.53768975,145.91,145.86,5.53768975]
[1750746484562,5.53768975,145.91,145.86,33.63768975]
[1750746484856,5.53768975,145.9,145.86,89.4]
[1750746485044,30.00241533,145.95,145.81,89.4]
[1750746485045,5.53768975,145.87,145.81,89.4]
[1750746485239,5.53768975,145.84,145.79,7.07318975]
[1750746485442,5.53768975,145.83,145.8,28.1]
[1750746486044,5.53768975,145.83,145.78,11.89178975]
[1750746486266,5.53768975,145.82,145.78,28.1]
[1750746486468,5.53768975,145.81,145.75,1.5355]
[1750746486654,5.53768975,145.81,145.69,255.55887743]
[1750746486655,1.6007,145.81,145.73,5.53768975]
[1750746486851,5.53768975,145.8,145.75,5.53768975]
[1750746487168,5.53768975,145.8,145.75,24.18733861]
[1750746487354,5.53768975,145.79,145.75,18.64964886]
[1750746487752,1.6007,145.81,145.75,18.64964886]
[1750746487753,5.53768975,145.78,145.75,18.64964886]
[1750746489371,5.53768975,145.79,145.75,18.64964886]
[1750746489572,1.6007,145.81,145.75,18.64964886]
[1750746489777,5.53768975,145.79,145.75,18.64964886]
[1750746490286,5.53768975,145.78,145.75,18.64964886]
[1750746490759,5.53768975,145.77,145.75,18.64964886]
[1750746491074,1.6007,145.81,145.74,28.1]
[1750746491270,1.6007,145.81,145.73,18.64964886]
[1750746491471,5.53768975,145.77,145.73,46.76964886]
[1750746493483,5.53768975,145.78,145.73,52.30733861]
[1750746493799,5.53768975,145.78,145.73,46.76964886]
[1750746493992,5.53768975,145.78,145.73,52.30733861]
[1750746496301,5.53768975,145.78,145.74,5.53768975]
[1750746496506,5.53768975,145.78,145.73,52.30733861]
[1750746496671,1.6007,145.81,145.74,5.53768975]
[1750746496873,5.53768975,145.8,145.75,52.30733861]
[1750746497189,5.53768975,145.79,145.75,52.30733861]
[1750746497388,5.53768975,145.79,145.75,46.76964886]
[1750746497902,5.53768975,145.78,145.75,46.76964886]
[1750746498984,5.53768975,145.79,145.75,46.76964886]
[1750746500482,5.53768975,145.79,145.75,52.30733861]
[1750746501317,5.53768975,145.79,145.75,46.76964886]
[1750746502400,1.6007,145.81,145.79,83.86231025]
[1750746502606,12.91649141,145.85,145.79,83.86231025]
[1750746502607,6.06,145.85,145.79,83.86231025]
[1750746502793,5.53768975,145.84,145.8,52.32733861]
[1750746503505,6.1131,145.86,145.8,52.32733861]
[1750746503506,5.53768975,145.86,145.82,18.64964886]
[1750746503692,5.53768975,145.85,145.82,279.65195911]
[1750746505312,5.53768975,145.85,145.82,251.51195911]
[1750746506212,5.53768975,145.83,145.82,83.86231025]
[1750746510133,6.85548448,145.87,145.82,83.86231025]
[1750746510334,5.53768975,145.83,145.82,83.86231025]
[1750746526373,5.53768975,145.84,145.82,83.86231025]
[1750746528476,5.53768975,145.85,145.82,83.86231025]
[1750746528782,5.53768975,145.86,145.82,83.86231025]
[1750746528971,5.53768975,145.84,145.82,83.86231025]
[1750746529175,5.53768975,145.83,145.82,83.86231025]
[1750746530974,5.53768975,145.83,145.78,28.12]
[1750746530975,7.14488975,145.83,145.8,83.86231025]
[1750746531160,5.53768975,145.81,145.75,102.51195911]
[1750746531363,5.53768975,145.81,145.76,52.30733861]
[1750746531775,5.53768975,145.82,145.77,5.53768975]
[1750746531988,5.53768975,145.82,145.78,28.12]
[1750746532162,5.53768975,145.82,145.78,111.98231025]
[1750746534285,7.14488975,145.83,145.78,117.52]
[1750746535276,5.53768975,145.84,145.79,24.18733861]
[1750746535580,11.59768975,145.85,145.8,28.12]
[1750746535885,11.59768975,145.85,145.8,111.98231025]
[1750746536097,5.53768975,145.84,145.8,111.98231025]
[1750746537677,6.06,145.85,145.8,111.98231025]
[1750746537875,5.53768975,145.84,145.8,111.98231025]
[1750746538074,11.59768975,145.85,145.8,117.52]
[1750746538470,11.59768975,145.85,145.8,111.98231025]
[1750746539185,5.53768975,145.84,145.8,117.52]
[1750746539395,11.59768975,145.85,145.8,117.52]
[1750746540186,6.06,145.85,145.8,117.52]
[1750746540393,11.59768975,145.85,145.8,117.52]
[1750746540571,6.06,145.85,145.81,24.18733861]
[1750746540887,5.53768975,145.84,145.82,28.12]
[1750746541194,5.53768975,145.84,145.81,28.12]
[1750746541379,5.53768975,145.83,145.8,83.86231025]
[1750746546103,5.53768975,145.84,145.8,83.86231025]
[1750746547578,5.53768975,145.83,145.8,83.86231025]
[1750746547981,5.53768975,145.82,145.8,83.86231025]
[1750746549400,5.53768975,145.83,145.8,83.86231025]
[1750746549693,6.06,145.85,145.8,83.86231025]
[1750746549899,5.53768975,145.83,145.8,83.86231025]
[1750746553307,5.53768975,145.82,145.8,83.86231025]
[1750746553507,6.06,145.85,145.82,78.3246205]
[1750746553684,5.53768975,145.83,145.82,78.3246205]
[1750746560616,6.06,145.85,145.82,78.3246205]
[1750746560781,11.59768975,145.85,145.82,78.3246205]
[1750746560983,5.53768975,145.83,145.82,78.3246205]
[1750746562195,7.08838975,145.83,145.79,78.3246205]
[1750746562516,5.53768975,145.8,145.79,78.3246205]
[1750746566024,5.53768975,145.8,145.75,78.3246205]
[1750746566310,5.53768975,145.76,145.75,78.3246205]
[1750746566519,5.53768975,145.77,145.75,78.3246205]
[1750746567516,5.53768975,145.76,145.75,78.3246205]
[1750746568420,5.53768975,145.78,145.75,78.3246205]
[1750746568728,5.53768975,145.8,145.76,18.64964886]
[1750746569032,5.53768975,145.8,145.77,28.12]
[1750746569215,5.53768975,145.81,145.77,28.12]
[1750746570134,5.53768975,145.81,145.78,18.64964886]
[1750746570513,5.53768975,145.81,145.78,96.97426936]
[1750746571800,5.53768975,145.8,145.78,78.3246205]
[1750746576842,5.53768975,145.79,145.78,78.3246205]
[1750746584318,5.53768975,145.8,145.78,78.3246205]
[1750746585332,5.53768975,145.81,145.78,78.3246205]
[1750746585836,5.53768975,145.81,145.79,28.12]
[1750746586222,5.53768975,145.81,145.78,106.4446205]
[1750746587936,5.53768975,145.82,145.78,111.98231025]
[1750746589228,5.53768975,145.82,145.78,106.4446205]
[1750746589538,5.53768975,145.82,145.78,111.98231025]
[1750746592524,5.53768975,145.83,145.78,111.98231025]
[1750746593330,6.06,145.85,145.79,24.18733861]
[1750746593331,5.53768975,145.84,145.79,24.18733861]
[1750746593540,5.53768975,145.84,145.8,33.63768975]
[1750746593950,6.06,145.85,145.8,33.63768975]
[1750746593951,11.59768975,145.85,145.8,33.63768975]
[1750746594131,11.59768975,145.85,145.8,111.96231025]
[1750746594328,11.59768975,145.85,145.81,18.64964886]
[1750746594329,6.06,145.85,145.81,18.64964886]
[1750746594643,6.06,145.85,145.81,24.18733861]
[1750746596030,6.06,145.85,145.81,130.61195911]
[1750746596834,11.59768975,145.85,145.81,125.07426936]
[1750746599940,5.53768975,145.84,145.81,125.07426936]
[1750746600344,5.53768975,145.82,145.81,78.3246205]
[1750746600655,6.06,145.85,145.82,72.78693075]
[1750746601728,5.53768975,145.83,145.82,72.78693075]
[1750746603951,6.06,145.85,145.82,72.78693075]
[1750746604153,5.53768975,145.83,145.82,72.78693075]
[1750746605930,7.12678975,145.83,145.82,72.78693075]
[1750746608170,1.5891,145.83,145.82,72.78693075]
[1750746608346,7.12678975,145.83,145.82,72.78693075]
[1750746609566,6.06,145.85,145.82,72.78693075]
[1750746609754,13.40676067,145.87,145.85,18.64964886]
[1750746609953,1.5614,145.95,145.89,26.0]
[1750746610256,5.53768975,145.97,145.92,24.18733861]
[1750746610436,5.53768975,145.95,145.91,28.1]
[1750746610642,5.53768975,145.94,145.9,46.74964886]
[1750746611031,5.53768975,145.91,145.88,28.1]
[1750746611344,14.50686911,145.99,145.87,46.76964886]
[1750746611345,5.53768975,145.9,145.87,46.76964886]
[1750746611663,5.53768975,145.91,145.87,46.76964886]
[1750746613345,5.53768975,145.91,145.87,52.30733861]
[1750746614847,5.53768975,145.91,145.87,274.09426936]
[1750746615236,6.04,145.95,145.88,5.53768975]
[1750746615448,5.53768975,145.93,145.89,5.53768975]
[1750746615853,5.53768975,145.93,145.88,78.3246205]
[1750746617249,5.53768975,145.92,145.88,72.78693075]
[1750746617850,11.57768975,145.95,145.9,5.53768975]
[1750746618154,5.53768975,145.94,145.89,33.63768975]
[1750746618755,6.04,145.95,145.89,33.63768975]
[1750746618756,11.57768975,145.95,145.9,24.18733861]
[1750746619572,11.57768975,145.95,145.91,5.53768975]
[1750746619776,11.57768975,145.95,145.91,72.78693075]
[1750746620966,5.53768975,145.94,145.91,72.78693075]
[1750746621274,6.04,145.95,145.91,72.78693075]
[1750746621275,5.53768975,145.93,145.91,72.78693075]
[1750746624068,6.04,145.95,145.91,72.78693075]
[1750746624375,5.53768975,145.93,145.91,72.78693075]
[1750746624571,5.53768975,145.94,145.91,72.78693075]
[1750746625572,11.57768975,145.95,145.91,72.78693075]
[1750746626553,5.53768975,145.94,145.91,72.78693075]
[1750746627476,6.04,145.95,145.91,72.78693075]
[1750746627652,11.57768975,145.95,145.91,72.78693075]
[1750746627848,5.53768975,145.94,145.91,72.78693075]
[1750746628775,5.53768975,145.93,145.91,72.78693075]
[1750746631562,5.53768975,145.94,145.91,72.78693075]
[1750746633257,6.04,145.95,145.91,72.78693075]
[1750746633462,11.57768975,145.95,145.91,100.86693075]
[1750746635169,5.53768975,145.94,145.91,100.86693075]
[1750746635478,5.53768975,145.94,145.91,72.78693075]
[1750746635677,5.53768975,145.93,145.91,72.78693075]
[1750746636373,5.53768975,145.94,145.91,72.78693075]
[1750746637186,5.53768975,145.93,145.91,72.78693075]
[1750746639173,5.53768975,145.94,145.91,72.78693075]
[1750746640782,11.57768975,145.95,145.91,72.78693075]
[1750746641098,5.53768975,145.95,145.92,28.08]
[1750746641275,5.53768975,145.95,145.92,100.86693075]
[1750746641966,21.35677,145.99,145.92,100.86693075]
[1750746641967,5.53768975,145.96,145.92,100.86693075]
[1750746642381,5.53768975,145.95,145.92,100.86693075]
[1750746643976,27.76647218,145.99,145.92,72.78693075]
[1750746643977,5.53768975,145.94,145.92,72.78693075]
[1750746644186,6.85030641,145.98,145.94,67.249241]
[1750746644378,5.53768975,145.95,145.94,67.249241]
[1750746649532,5.53768975,145.95,145.91,67.249241]
[1750746649533,14.03775127,145.95,145.91,67.249241]
[1750746649799,5.53768975,145.92,145.91,67.249241]
[1750746650174,17.92844967,145.92,145.91,67.249241]
[1750746651883,11.0753795,145.92,145.91,67.249241]
[1750746652201,5.53768975,145.92,145.91,67.249241]
[1750746654885,11.57768975,145.94,145.92,61.71155125]
[1750746655604,1.6397,145.98,145.92,61.71155125]
[1750746655605,5.53768975,145.95,145.92,89.79155125]
[1750746655785,5.53768975,145.93,145.92,61.71155125]
[1750746664839,11.95882449,145.93,145.92,61.71155125]
[1750746665321,5.53768975,145.93,145.92,61.71155125]
[1750746665633,11.95882449,145.93,145.92,61.71155125]
[1750746666912,5.53768975,145.93,145.92,61.71155125]
[1750746668922,5.53768975,145.94,145.92,61.71155125]
[1750746669128,5.53768975,145.95,145.92,61.71155125]
[1750746670113,5.53768975,145.94,145.92,61.71155125]
[1750746670309,14.10083474,145.98,145.92,61.71155125]
[1750746670735,5.53768975,145.95,145.92,61.71155125]
[1750746671045,7.6797,145.98,145.92,89.81155125]
[1750746671252,6.04,145.98,145.93,18.64964886]
[1750746671537,5.53768975,145.97,145.93,18.64964886]
[1750746673120,6.04,145.98,145.93,18.64964886]
[1750746673121,5.53768975,145.96,145.93,18.64964886]
[1750746673622,6.04,145.98,145.92,89.81155125]
[1750746673829,5.53768975,145.95,145.92,61.71155125]
[1750746674943,6.04,145.98,145.92,61.71155125]
[1750746675243,5.53768975,145.95,145.92,61.71155125]
[1750746677064,5.53768975,145.93,145.92,61.71155125]
[1750746677234,6.04,145.98,145.92,61.71155125]
[1750746677235,1.5916,145.96,145.92,61.71155125]
[1750746677549,5.53768975,145.93,145.92,61.71155125]
[1750746677763,5.53768975,145.96,145.93,56.1738615]
[1750746677967,5.53768975,145.97,145.94,18.64964886]
[1750746678260,6.04,145.98,145.94,74.82351036]
[1750746678261,11.57768975,145.98,145.94,74.82351036]
[1750746678439,6.04,145.98,145.94,74.82351036]
[1750746678635,11.57768975,145.98,145.94,108.46120011]
[1750746679027,14.50686911,145.99,145.96,18.64964886]
[1750746679228,6.04,146.03,145.96,74.82351036]
[1750746679229,5.53768975,146.0,145.96,74.82351036]
[1750746680052,5.53768975,145.99,145.96,74.82351036]
[1750746683343,6.04,146.03,145.96,56.1738615]
[1750746683344,5.53768975,145.97,145.96,56.1738615]
[1750746683664,5.53768975,145.97,145.96,50.63617175]
[1750746688652,12.88808002,146.03,145.97,45.098482]
[1750746688860,5.53768975,145.98,145.97,45.098482]
[1750746689353,6.04,146.03,145.97,45.098482]
[1750746689543,5.53768975,145.99,145.97,43.223982]
[1750746690370,5.53768975,146.0,145.97,43.223982]
[1750746690569,5.53768975,146.01,145.97,43.223982]
[1750746690743,5.53768975,146.0,145.97,71.303982]
[1750746693251,1.4759519,146.04,145.98,24.18733861]
[1750746693444,7.01364165,146.04,146.0,18.64964886]
[1750746693645,5.53768975,146.01,145.98,220.323982]
[1750746693950,5.53768975,146.01,145.98,43.223982]
[1750746694352,5.53768975,146.02,145.98,43.223982]
[1750746695559,7.01364165,146.04,145.99,24.18733861]
[1750746695860,1.4759519,146.04,145.99,95.51132061]
[1750746696065,7.01364165,146.04,145.99,95.51132061]
[1750746696262,1.4759519,146.04,145.99,95.51132061]
[1750746696467,5.53768975,146.03,145.99,95.51132061]
[1750746696643,5.53768975,146.03,145.99,89.97363086]
[1750746698767,1.4759519,146.04,145.99,89.97363086]
[1750746698977,5.53768975,146.03,145.99,89.97363086]
[1750746700569,1.4759519,146.04,146.03,37.68629225]
[1750746700747,7.01364165,146.04,146.03,37.68629225]
[1750746701752,1.4759519,146.04,146.03,37.68629225]
[1750746703360,7.01364165,146.04,146.03,37.68629225]
[1750746703562,1.4759519,146.04,146.03,37.68629225]
[1750746703763,7.01364165,146.04,146.03,37.68629225]
[1750746704771,1.4759519,146.04,146.03,37.68629225]
[1750746706646,7.01364165,146.04,146.03,37.68629225]
[1750746708267,1.4759519,146.04,146.03,37.68629225]
[1750746708750,5.53768975,146.06,146.05,30.6726506]
[1750746709068,5.53768975,146.06,146.03,49.32229946]
[1750746709462,5.53768975,146.06,146.04,18.64964886]
[1750746709668,11.59768975,146.07,146.04,18.64964886]
[1750746710171,5.53768975,146.07,146.04,18.64964886]
[1750746710580,5.53768975,146.05,146.04,18.64964886]
[1750746710955,5.53768975,146.06,146.03,30.6726506]
[1750746712851,5.53768975,146.08,146.04,18.64964886]
[1750746713349,5.53768975,146.09,146.04,52.24733861]
[1750746713858,5.53768975,146.08,146.04,52.24733861]
[1750746714066,11.48681979,146.13,146.08,25.13496085]
[1750746714269,5.53768975,146.09,146.08,25.13496085]
[1750746717111,18.33026513,146.13,146.08,25.13496085]
[1750746717284,5.03768975,146.09,146.08,25.13496085]
[1750746718184,18.33026513,146.13,146.08,25.13496085]
[1750746718185,5.53768975,146.1,146.08,25.13496085]
[1750746718562,6.04,146.13,146.08,25.13496085]
[1750746718770,5.53768975,146.11,146.08,25.13496085]
[1750746720277,6.04,146.13,146.08,25.13496085]
[1750746720591,5.53768975,146.11,146.08,25.13496085]
[1750746720965,5.53768975,146.12,146.08,25.13496085]
[1750746721287,5.53768975,146.11,146.08,25.13496085]
[1750746721781,6.04,146.13,146.08,25.13496085]
[1750746721977,5.53768975,146.11,146.08,25.13496085]
[1750746722186,5.53768975,146.09,146.08,25.13496085]
[1750746723490,6.04,146.13,146.08,25.13496085]
[1750746723788,5.53768975,146.1,146.08,25.13496085]
[1750746723998,6.04,146.13,146.1,19.5972711]
[1750746724364,5.53768975,146.11,146.1,19.5972711]
[1750746725883,6.04,146.13,146.1,19.5972711]
[1750746726098,5.53768975,146.11,146.1,19.5972711]
[1750746728979,6.04,146.13,146.1,19.5972711]
[1750746729195,5.53768975,146.11,146.1,19.5972711]
[1750746730976,6.04,146.13,146.1,19.5972711]
[1750746731301,5.53768975,146.11,146.1,19.5972711]
[1750746732018,6.04,146.13,146.1,19.5972711]
[1750746732171,5.53768975,146.11,146.1,19.5972711]
[1750746732569,1.6147,146.15,146.08,18.64964886]
[1750746732804,5.53768975,146.16,146.07,28.04]
[1750746733011,5.53768975,146.11,146.08,18.64964886]
[1750746733301,12.22503691,146.17,146.08,18.64964886]
[1750746733469,5.53768975,146.16,146.08,18.64964886]
[1750746733673,5.53768975,146.11,146.08,18.64964886]
[1750746735306,11.8046626,146.17,146.08,18.64964886]
[1750746735492,5.53768975,146.11,146.08,18.64964886]
[1750746736276,13.26255779,146.17,146.08,18.64964886]
[1750746736479,6.3756,146.18,146.08,187.24691996]
[1750746736480,19.30208678,146.18,146.08,187.24691996]
[1750746736695,12.46113474,146.18,146.08,199.63013876]
[1750746736907,5.53768975,146.13,146.08,199.63013876]
[1750746737293,12.46113474,146.18,146.09,5.53768975]
[1750746737294,6.04,146.18,146.09,5.53768975]
[1750746737614,5.53768975,146.14,146.09,174.13496085]
[1750746737975,12.99632566,146.21,146.09,174.13496085]
[1750746737976,12.46113474,146.21,146.12,5.53768975]
[1750746738178,5.53768975,146.16,146.13,18.64964886]
[1750746738385,5.53768975,146.17,146.13,38.24691996]
[1750746738582,5.53768975,146.15,146.13,38.24691996]
[1750746738779,19.3006147,146.21,146.12,18.64964886]
[1750746739021,5.53768975,146.15,146.12,18.64964886]
[1750746739195,19.3006147,146.21,146.12,18.64964886]
[1750746739196,19.3006147,146.21,146.12,108.04964886]
[1750746739407,5.53768975,146.17,146.12,113.58733861]
[1750746739582,5.53768975,146.17,146.11,157.39672589]
[1750746739583,5.53768975,146.14,146.11,1.5527]
[1750746739782,5.53768975,146.14,146.07,28.04]
[1750746739783,5.53768975,146.12,146.07,90.9527]
[1750746740005,6.04,146.14,146.06,95.7663]
[1750746740198,5.53768975,146.08,146.06,95.7663]
[1750746740611,5.53768975,146.08,146.07,18.64964886]
[1750746741305,6.42113474,146.15,146.11,18.64964886]
[1750746741614,5.53768975,146.17,146.13,18.64964886]
[1750746741782,5.53768975,146.18,146.13,24.18733861]
[1750746741987,5.53768975,146.18,146.13,262.58733861]
[1750746742400,5.53768975,146.17,146.13,257.04964886]
[1750746742818,5.53768975,146.17,146.13,263.89279059]
[1750746743318,6.04,146.23,146.13,263.89279059]
[1750746743319,5.53768975,146.18,146.13,269.43048034]
[1750746743509,6.04,146.23,146.18,83.86231025]
[1750746743697,5.53768975,146.19,146.18,83.86231025]
[1750746746700,5.53768975,146.19,146.13,167.64964886]
[1750746746701,6.04,146.23,146.13,24.18733861]
[1750746747016,5.53768975,146.18,146.13,24.18733861]
[1750746747208,5.53768975,146.17,146.13,18.64964886]
[1750746748501,5.53768975,146.17,146.13,25.49253084]
[1750746752214,5.53768975,146.17,146.13,18.64964886]
[1750746752421,5.53768975,146.16,146.13,18.64964886]
[1750746756018,5.53768975,146.17,146.13,18.64964886]
[1750746756324,5.53768975,146.18,146.17,83.86231025]
[1750746756507,5.53768975,146.18,146.13,257.04964886]
[1750746757208,5.53768975,146.16,146.13,251.51195911]
[1750746760517,5.53768975,146.15,146.13,251.51195911]
[1750746760727,1.5813,146.2,146.13,83.86231025]
[1750746761446,5.53768975,146.15,146.13,83.86231025]
[1750746761636,1.5813,146.2,146.15,78.3246205]
[1750746761941,5.53768975,146.16,146.15,78.3246205]
[1750746762317,1.5813,146.2,146.15,78.3246205]
[1750746762525,5.53768975,146.16,146.15,78.3246205]
[1750746767351,11.0753795,146.16,146.15,78.3246205]
[1750746769233,11.0753795,146.16,146.08,6.2514]
[1750746769430,11.0753795,146.16,146.09,18.64964886]
[1750746769431,5.53768975,146.1,146.09,18.64964886]
[1750746769631,5.53768975,146.11,146.1,83.86231025]
[1750746769838,5.53768975,146.11,146.09,102.51195911]
[1750746770368,5.53768975,146.1,146.09,83.86231025]
[1750746770564,1.6221,146.09,146.02,18.64964886]
[1750746770733,1.6221,146.09,146.0,6.3418]
[1750746770734,5.53768975,146.03,146.0,41.35111113]
[1750746771053,5.53768975,146.03,146.0,34.5018]
[1750746771234,5.53768975,146.01,145.97,18.16576975]
[1750746771424,5.53768975,146.01,145.97,46.34576975]
[1750746771627,5.53768975,146.01,145.98,18.64964886]
[1750746772348,5.53768975,146.08,145.98,18.64964886]
[1750746772558,5.53768975,146.02,145.98,18.64964886]
[1750746773856,5.53768975,146.01,145.98,18.64964886]
[1750746774057,5.53768975,145.99,145.96,6.6356]
[1750746774235,5.53768975,145.98,145.93,7.05628975]
[1750746774451,5.53768975,145.97,145.93,61.23628975]
[1750746774733,5.53768975,145.97,145.94,18.64964886]
[1750746775159,5.53768975,145.96,145.93,18.64964886]
[1750746775337,5.53768975,145.96,145.93,102.51195911]
[1750746776752,5.53768975,145.94,145.93,102.51195911]
[1750746777052,5.53768975,145.94,145.93,83.86231025]
[1750746778078,1.597,145.97,145.93,83.86231025]
[1750746778425,5.53768975,145.94,145.93,83.86231025]
[1750746779930,5.53768975,145.95,145.93,83.86231025]
[1750746781130,5.53768975,145.94,145.93,83.86231025]
[1750746781544,5.53768975,145.95,145.93,83.86231025]
[1750746781746,5.53768975,145.96,145.93,83.86231025]
[1750746782133,5.53768975,145.97,145.93,89.4]
[1750746782325,11.65768975,145.98,145.94,18.64964886]
[1750746782531,6.12,145.98,145.96,5.53768975]
[1750746782738,7.07028975,146.01,145.97,18.64964886]
[1750746782937,7.07028975,146.01,145.97,102.51195911]
[1750746783354,5.53768975,146.01,145.97,102.51195911]
[1750746784045,6.12,146.03,145.97,102.51195911]
[1750746784250,6.12,146.03,145.97,108.04964886]
[1750746784544,5.53768975,146.02,145.97,108.04964886]
[1750746785662,5.53768975,146.01,145.97,102.51195911]
[1750746785852,5.53768975,146.0,145.97,83.86231025]
[1750746788054,6.12,146.03,145.98,24.18733861]
[1750746788364,11.65768975,146.03,145.98,24.18733861]
[1750746788854,11.65768975,146.03,145.98,18.64964886]
[1750746789047,11.65768975,146.03,145.99,5.53768975]
[1750746790163,5.53768975,146.02,145.98,102.51195911]
[1750746790371,11.65768975,146.03,145.98,108.04964886]
[1750746791847,6.12,146.03,145.99,5.53768975]
[1750746792186,5.53768975,146.02,145.99,83.86231025]
[1750746792949,11.65768975,146.03,145.99,83.86231025]
[1750746794459,5.53768975,146.02,145.99,83.86231025]
[1750746796259,11.65768975,146.03,145.99,89.4]
[1750746796942,11.65768975,146.03,145.99,83.86231025]
[1750746797146,5.53768975,146.02,145.99,83.86231025]
[1750746798859,11.65768975,146.03,145.99,83.86231025]
[1750746799263,5.53768975,146.02,145.99,83.86231025]
[1750746799451,5.53768975,146.01,145.99,83.86231025]
[1750746799654,6.12,146.03,145.99,83.86231025]
[1750746800058,5.53768975,146.01,145.99,83.86231025]
[1750746802458,5.53768975,146.02,145.99,83.86231025]
[1750746803871,6.12,146.03,145.99,83.86231025]
[1750746804067,5.53768975,146.01,145.99,83.86231025]
[1750746804275,5.53768975,146.02,145.99,83.86231025]
[1750746805173,6.12,146.03,146.0,18.64964886]
[1750746805477,6.12,146.03,146.0,102.51195911]
[1750746806362,5.53768975,146.06,146.02,18.64964886]
[1750746806551,5.53768975,146.06,146.02,108.04964886]
[1750746806750,5.53768975,146.07,146.02,108.04964886]
[1750746806970,5.53768975,146.08,146.04,18.64964886]
[1750746807223,1.6655,146.09,146.04,108.04964886]
[1750746807224,7.20318975,146.09,146.04,108.04964886]
[1750746807371,5.53768975,146.09,146.04,108.04964886]
[1750746810069,5.53768975,146.09,146.06,18.64964886]
[1750746810270,11.65768975,146.1,146.06,18.64964886]
[1750746810465,5.53768975,146.09,146.06,18.64964886]
[1750746812864,5.53768975,146.09,146.06,102.51195911]
[1750746816085,5.53768975,146.08,146.06,102.51195911]
[1750746816569,5.53768975,146.08,146.06,83.86231025]
[1750746819187,6.12,146.1,146.06,83.86231025]
[1750746819361,5.53768975,146.08,146.06,83.86231025]
[1750746819874,5.53768975,146.07,146.06,83.86231025]
[1750746820903,5.53768975,146.08,146.06,83.86231025]
[1750746821061,6.12,146.1,146.06,83.86231025]
[1750746821399,5.53768975,146.08,146.06,83.86231025]
[1750746823887,5.53768975,146.07,146.06,83.86231025]
[1750746824599,7.09818975,146.07,146.06,83.86231025]
[1750746826403,5.53768975,146.07,146.06,83.86231025]
[1750746835903,6.84532686,146.09,146.06,83.86231025]
[1750746836092,5.53768975,146.07,146.06,83.86231025]
[1750746837010,5.53768975,146.07,146.01,83.86231025]
[1750746837198,5.53768975,146.02,146.01,83.86231025]
[1750746838494,5.53768975,146.03,146.01,83.86231025]
[1750746840308,5.53768975,146.02,146.01,83.86231025]
[1750746843104,5.53768975,146.02,145.99,83.86231025]
[1750746843315,5.53768975,146.0,145.99,83.86231025]
[1750746848129,6.04,146.04,145.99,83.86231025]
[1750746848294,5.53768975,146.01,145.99,83.86231025]
[1750746848493,6.04,146.04,145.99,83.86231025]
[1750746848709,5.53768975,146.02,145.99,83.86231025]
[1750746849117,5.53768975,146.03,145.99,89.4]
[1750746850221,11.57768975,146.04,145.99,89.4]
[1750746850517,6.04,146.04,146.0,24.18733861]
[1750746850819,6.04,146.04,146.0,52.26733861]
[1750746852634,1.6599,146.09,146.0,130.59195911]
[1750746852929,5.53768975,146.07,146.02,5.53768975]
[1750746853926,5.53768975,146.06,146.01,33.61768975]
[1750746854111,5.53768975,146.06,146.01,117.48]
[1750746856420,5.53768975,146.07,146.02,24.18733861]
[1750746856619,5.53768975,146.06,146.02,18.64964886]
[1750746856820,5.53768975,146.06,146.02,102.51195911]
[1750746858330,5.53768975,146.06,146.02,108.04964886]
[1750746858711,5.53768975,146.06,146.02,102.51195911]
[1750746860026,5.53768975,146.07,146.03,5.53768975]
[1750746860208,11.59768975,146.09,146.04,24.18733861]
[1750746860406,6.06,146.09,146.05,5.53768975]
[1750746860833,6.06,146.09,146.06,5.53768975]
[1750746861218,5.53768975,146.11,146.06,5.53768975]
[1750746861510,5.53768975,146.09,146.06,18.64964886]
[1750746864924,5.53768975,146.1,146.06,18.64964886]